[Event "Titled Tuesday Blitz February 14 Early 2023"]
[White "Mendonca, Leon Luke"]
[Black "Sadykov, Ramil"]
[WhiteFideId "35028561"]
[BlackFideId "24113590"]
[WhiteElo "2603"]
[BlackElo "2345"]
[Result "0-1"]
[Round "05"]
[TimeControl "180+2"]
[Date "2023.02.15"]
[WhiteClock "0:00:05"]
[BlackClock "0:00:07"]

1. Nf3 {[%clk 0:02:52]}  Nf6 {[%clk 0:02:58]} 2. c4 {[%clk 0:02:51]}  e6 {[%clk 0:02:56]} 3. b3 {[%clk 0:02:51]}  d5 {[%clk 0:02:55]} 4. Bb2 {[%clk 0:02:52]}  Be7 {[%clk 0:02:50]} 5. e3 {[%clk 0:02:51]}  O-O {[%clk 0:02:47]} 6. Nc3 {[%clk 0:02:50]}  c5 {[%clk 0:02:46]} 7. cxd5 {[%clk 0:02:50]}  Nxd5 {[%clk 0:02:42]} 8. Qc2 {[%clk 0:02:49]}  Nc6 {[%clk 0:02:29]} 9. a3 {[%clk 0:02:49]}  Nf6 {[%clk 0:02:23]} 10. h4 {[%clk 0:02:43]}  e5 {[%clk 0:02:12]} 11. Bd3 {[%clk 0:02:37]}  h6 {[%clk 0:01:48]} 12. Ne4 {[%clk 0:02:26]}  Re8 {[%clk 0:01:31]} 13. Nxf6+ {[%clk 0:02:19]}  Bxf6 {[%clk 0:01:30]} 14. Bh7+ {[%clk 0:02:20]}  Kh8 {[%clk 0:01:27]} 15. Be4 {[%clk 0:02:20]}  Qd6 {[%clk 0:01:23]} 16. Ng5 {[%clk 0:02:11]}  Kg8 {[%clk 0:01:16]} 17. Bxc6 {[%clk 0:01:42]}  Qxc6 {[%clk 0:01:09]} 18. Qh7+ {[%clk 0:01:42]}  Kf8 {[%clk 0:01:09]} 19. Ne4 {[%clk 0:01:38]}  Ke7 {[%clk 0:00:54]} 20. Rc1 {[%clk 0:01:18]}  b6 {[%clk 0:00:53]} 21. O-O {[%clk 0:00:54]}  Ba6 {[%clk 0:00:48]} 22. Nxf6 {[%clk 0:00:46]}  gxf6 {[%clk 0:00:43]} 23. Rfe1 {[%clk 0:00:28]}  Rg8 {[%clk 0:00:39]} 24. e4 {[%clk 0:00:24]}  Rg6 {[%clk 0:00:35]} 25. d4 {[%clk 0:00:23]}  exd4 {[%clk 0:00:29]} 26. Bxd4 {[%clk 0:00:22]}  Rag8 {[%clk 0:00:30]} 27. g3 {[%clk 0:00:20]}  Qd7 {[%clk 0:00:18]} 28. h5 {[%clk 0:00:11]}  Rxg3+ {[%clk 0:00:13]} 29. fxg3 {[%clk 0:00:11]}  Qxd4+ {[%clk 0:00:10]} 30. Kg2 {[%clk 0:00:10]}  Qd2+ {[%clk 0:00:10]} 31. Kh3 {[%clk 0:00:10]}  Bc8+ {[%clk 0:00:10]} 32. Qf5 {[%clk 0:00:07]}  Bxf5+ {[%clk 0:00:08]} 33. exf5+ {[%clk 0:00:08]}  Kf8 {[%clk 0:00:08]} 34. Rcd1 {[%clk 0:00:09]}  Qg5 {[%clk 0:00:05]} 35. Rd8+ {[%clk 0:00:07]}  Kg7 {[%clk 0:00:06]} 36. Rxg8+ {[%clk 0:00:07]}  Kxg8 {[%clk 0:00:07]} 37. g4 {[%clk 0:00:05]}  Qd2 {[%clk 0:00:07]} 38. Re8+ {[%clk 0:00:05]}  Kg7 {[%clk 0:00:07]} 0-1


[Site "https://www.chess.com"]

[Event "Titled Tuesday Blitz February 14 Early 2023"]
[White "Dobrikov, Marco"]
[Black "Rustemov, Alexander"]
[WhiteFideId "12950378"]
[BlackFideId "4119002"]
[WhiteElo "2269"]
[BlackElo "2525"]
[Result "1/2-1/2"]
[Round "05"]
[TimeControl "180+2"]
[Date "2023.02.15"]
[WhiteClock "0:00:08"]
[BlackClock "0:00:10"]

1. d4 {[%clk 0:03:00]}  d5 {[%clk 0:02:59]} 2. Bf4 {[%clk 0:03:00]}  Nf6 {[%clk 0:02:58]} 3. e3 {[%clk 0:03:01]}  c5 {[%clk 0:02:58]} 4. c3 {[%clk 0:03:01]}  Nc6 {[%clk 0:02:56]} 5. Nd2 {[%clk 0:03:00]}  Bg4 {[%clk 0:02:55]} 6. Qb3 {[%clk 0:02:56]}  Qc8 {[%clk 0:02:53]} 7. h3 {[%clk 0:02:51]}  Bh5 {[%clk 0:02:52]} 8. Ngf3 {[%clk 0:02:46]}  e6 {[%clk 0:02:51]} 9. Be2 {[%clk 0:02:37]}  Be7 {[%clk 0:02:51]} 10. Ne5 {[%clk 0:02:36]}  Bxe2 {[%clk 0:02:50]} 11. Kxe2 {[%clk 0:02:36]}  O-O {[%clk 0:02:47]} 12. Rhe1 {[%clk 0:02:31]}  a6 {[%clk 0:02:44]} 13. Kf1 {[%clk 0:02:31]}  b5 {[%clk 0:02:32]} 14. Kg1 {[%clk 0:02:28]}  Qb7 {[%clk 0:02:30]} 15. Qc2 {[%clk 0:02:20]}  Rfc8 {[%clk 0:02:29]} 16. Qd3 {[%clk 0:01:57]}  cxd4 {[%clk 0:02:19]} 17. exd4 {[%clk 0:01:57]}  b4 {[%clk 0:02:18]} 18. Ndf3 {[%clk 0:01:41]}  Ne4 {[%clk 0:02:14]} 19. c4 {[%clk 0:01:41]}  b3 {[%clk 0:02:08]} 20. a3 {[%clk 0:01:34]}  Na5 {[%clk 0:02:07]} 21. c5 {[%clk 0:01:33]}  f6 {[%clk 0:02:04]} 22. Ng4 {[%clk 0:01:32]}  Qb5 {[%clk 0:02:01]} 23. Qd1 {[%clk 0:01:16]}  f5 {[%clk 0:01:37]} 24. Nge5 {[%clk 0:01:16]}  Bf6 {[%clk 0:01:37]} 25. Rc1 {[%clk 0:01:09]}  h6 {[%clk 0:01:31]} 26. Nd2 {[%clk 0:01:06]}  Ra7 {[%clk 0:01:15]} 27. Nxe4 {[%clk 0:01:05]}  fxe4 {[%clk 0:01:12]} 28. Rc3 {[%clk 0:01:00]}  Rb7 {[%clk 0:01:09]} 29. Qg4 {[%clk 0:00:57]}  Qe8 {[%clk 0:01:07]} 30. h4 {[%clk 0:00:53]}  Kh7 {[%clk 0:01:04]} 31. h5 {[%clk 0:00:53]}  Bxe5 {[%clk 0:01:02]} 32. Bxe5 {[%clk 0:00:53]}  Nc6 {[%clk 0:00:57]} 33. Ree3 {[%clk 0:00:39]}  Qf7 {[%clk 0:00:55]} 34. Rxb3 {[%clk 0:00:38]}  Rxb3 {[%clk 0:00:50]} 35. Rxb3 {[%clk 0:00:39]}  Nxe5 {[%clk 0:00:50]} 36. dxe5 {[%clk 0:00:40]}  Rxc5 {[%clk 0:00:50]} 37. Rb6 {[%clk 0:00:38]}  Rc1+ {[%clk 0:00:33]} 38. Kh2 {[%clk 0:00:38]}  Rc2 {[%clk 0:00:33]} 39. Rxe6 {[%clk 0:00:37]}  Kg8 {[%clk 0:00:22]} 40. Rf6 {[%clk 0:00:34]}  Qe7 {[%clk 0:00:20]} 41. Rd6 {[%clk 0:00:22]}  Qxe5+ {[%clk 0:00:19]} 42. Qg3 {[%clk 0:00:22]}  Qxg3+ {[%clk 0:00:19]} 43. Kxg3 {[%clk 0:00:23]}  Rd2 {[%clk 0:00:15]} 44. b4 {[%clk 0:00:21]}  d4 {[%clk 0:00:13]} 45. Rxa6 {[%clk 0:00:21]}  d3 {[%clk 0:00:13]} 46. Rd6 {[%clk 0:00:21]}  Ra2 {[%clk 0:00:12]} 47. b5 {[%clk 0:00:21]}  Rxa3 {[%clk 0:00:13]} 48. Kf4 {[%clk 0:00:21]}  Ra4 {[%clk 0:00:12]} 49. Ke3 {[%clk 0:00:21]}  Rb4 {[%clk 0:00:12]} 50. Rd5 {[%clk 0:00:21]}  Kf7 {[%clk 0:00:12]} 51. g4 {[%clk 0:00:21]}  Ke6 {[%clk 0:00:13]} 52. Rf5 {[%clk 0:00:21]}  Rb2 {[%clk 0:00:10]} 53. Kxe4 {[%clk 0:00:19]}  d2 {[%clk 0:00:09]} 54. Rd5 {[%clk 0:00:19]}  Rxb5 {[%clk 0:00:08]} 55. Rxd2 {[%clk 0:00:19]}  Rb4+ {[%clk 0:00:09]} 56. Kf3 {[%clk 0:00:20]}  Rb3+ {[%clk 0:00:09]} 57. Kf4 {[%clk 0:00:20]}  Rb4+ {[%clk 0:00:09]} 58. Kg3 {[%clk 0:00:20]}  Rb3+ {[%clk 0:00:09]} 59. f3 {[%clk 0:00:21]}  Kf7 {[%clk 0:00:10]} 60. Rd6 {[%clk 0:00:21]}  Ra3 {[%clk 0:00:10]} 61. Rd5 {[%clk 0:00:21]}  Rb3 {[%clk 0:00:10]} 62. Rf5+ {[%clk 0:00:22]}  Kg8 {[%clk 0:00:10]} 63. Kh4 {[%clk 0:00:21]}  Ra3 {[%clk 0:00:10]} 64. f4 {[%clk 0:00:22]}  Ra1 {[%clk 0:00:10]} 65. g5 {[%clk 0:00:22]}  Rh1+ {[%clk 0:00:09]} 66. Kg4 {[%clk 0:00:22]}  Rg1+ {[%clk 0:00:09]} 67. Kf3 {[%clk 0:00:23]}  hxg5 {[%clk 0:00:10]} 68. Rxg5 {[%clk 0:00:21]}  Rh1 {[%clk 0:00:08]} 69. Kg2 {[%clk 0:00:20]}  Rh4 {[%clk 0:00:08]} 70. Kg3 {[%clk 0:00:18]}  Rh1 {[%clk 0:00:08]} 71. Ra5 {[%clk 0:00:17]}  Kh7 {[%clk 0:00:08]} 72. Kg4 {[%clk 0:00:17]}  Kh6 {[%clk 0:00:08]} 73. Ra6+ {[%clk 0:00:17]}  Kh7 {[%clk 0:00:08]} 74. Kg5 {[%clk 0:00:16]}  Rg1+ {[%clk 0:00:08]} 75. Kf5 {[%clk 0:00:17]}  Rh1 {[%clk 0:00:09]} 76. Kg5 {[%clk 0:00:17]}  Rg1+ {[%clk 0:00:10]} 77. Kh4 {[%clk 0:00:14]}  Rh1+ {[%clk 0:00:11]} 78. Kg4 {[%clk 0:00:15]}  Rg1+ {[%clk 0:00:11]} 79. Kf3 {[%clk 0:00:16]}  Rh1 {[%clk 0:00:11]} 80. Kg4 {[%clk 0:00:15]}  Rg1+ {[%clk 0:00:11]} 81. Kf5 {[%clk 0:00:15]}  Rh1 {[%clk 0:00:12]} 82. h6 {[%clk 0:00:16]}  Rxh6 {[%clk 0:00:10]} 83. Rxh6+ {[%clk 0:00:14]}  Kxh6 {[%clk 0:00:10]} 84. Ke6 {[%clk 0:00:13]}  Kh5 {[%clk 0:00:10]} 85. f5 {[%clk 0:00:12]}  Kg5 {[%clk 0:00:10]} 86. Ke5 {[%clk 0:00:08]}  Kg4 {[%clk 0:00:10]} 87. f6 {[%clk 0:00:07]}  gxf6+ {[%clk 0:00:10]} 88. Kxf6 {[%clk 0:00:08]} 1/2-1/2


[Site "https://www.chess.com"]

[Event "Titled Tuesday Blitz February 14 Early 2023"]
[White "Chylewski, Patryk"]
[Black "Boruchovsky, Avital"]
[WhiteFideId "1186191"]
[BlackFideId "2800055"]
[WhiteElo "2281"]
[BlackElo "2539"]
[Result "0-1"]
[Round "05"]
[TimeControl "180+2"]
[Date "2023.02.15"]
[WhiteClock "0:00:01"]
[BlackClock "0:01:26"]

1. d4 {[%clk 0:03:00]}  Nf6 {[%clk 0:02:59]} 2. c4 {[%clk 0:03:00]}  g6 {[%clk 0:02:59]} 3. Nc3 {[%clk 0:03:00]}  d5 {[%clk 0:02:59]} 4. cxd5 {[%clk 0:02:59]}  Nxd5 {[%clk 0:03:00]} 5. e4 {[%clk 0:02:59]}  Nxc3 {[%clk 0:03:00]} 6. bxc3 {[%clk 0:03:00]}  Bg7 {[%clk 0:03:01]} 7. Nf3 {[%clk 0:02:58]}  O-O {[%clk 0:03:01]} 8. Be2 {[%clk 0:02:57]}  c5 {[%clk 0:03:02]} 9. O-O {[%clk 0:02:57]}  Qc7 {[%clk 0:03:00]} 10. Be3 {[%clk 0:02:52]}  Rd8 {[%clk 0:02:51]} 11. Rb1 {[%clk 0:02:43]}  Nc6 {[%clk 0:02:46]} 12. Qa4 {[%clk 0:02:34]}  Bg4 {[%clk 0:02:28]} 13. d5 {[%clk 0:02:30]}  Ne5 {[%clk 0:02:27]} 14. c4 {[%clk 0:01:45]}  Nxf3+ {[%clk 0:02:23]} 15. Bxf3 {[%clk 0:01:36]}  Bxf3 {[%clk 0:02:23]} 16. gxf3 {[%clk 0:01:37]}  Be5 {[%clk 0:02:23]} 17. Kg2 {[%clk 0:01:28]}  Rf8 {[%clk 0:02:23]} 18. Bh6 {[%clk 0:01:17]}  Bg7 {[%clk 0:02:20]} 19. Bxg7 {[%clk 0:01:12]}  Kxg7 {[%clk 0:02:21]} 20. Qb3 {[%clk 0:01:09]}  b6 {[%clk 0:02:21]} 21. Qc3+ {[%clk 0:00:47]}  f6 {[%clk 0:02:20]} 22. Rfd1 {[%clk 0:00:41]}  Qd6 {[%clk 0:02:09]} 23. Qe3 {[%clk 0:00:36]}  g5 {[%clk 0:02:06]} 24. Re1 {[%clk 0:00:21]}  Qe5 {[%clk 0:02:05]} 25. Rb3 {[%clk 0:00:17]}  Rad8 {[%clk 0:02:04]} 26. Qc3 {[%clk 0:00:15]}  Kg6 {[%clk 0:01:56]} 27. Qxe5 {[%clk 0:00:14]}  fxe5 {[%clk 0:01:57]} 28. a4 {[%clk 0:00:14]}  Rd6 {[%clk 0:01:54]} 29. Ra1 {[%clk 0:00:13]}  Rf4 {[%clk 0:01:51]} 30. h3 {[%clk 0:00:12]}  h5 {[%clk 0:01:48]} 31. a5 {[%clk 0:00:12]}  g4 {[%clk 0:01:47]} 32. hxg4 {[%clk 0:00:11]}  hxg4 {[%clk 0:01:47]} 33. axb6 {[%clk 0:00:11]}  axb6 {[%clk 0:01:47]} 34. fxg4 {[%clk 0:00:08]}  Rxe4 {[%clk 0:01:46]} 35. Ra6 {[%clk 0:00:02]}  Rxg4+ {[%clk 0:01:46]} 36. Kf3 {[%clk 0:00:02]}  Rxc4 {[%clk 0:01:39]} 37. Raxb6 {[%clk 0:00:02]}  Kf5 {[%clk 0:01:34]} 38. Ke3 {[%clk 0:00:01]}  Re4+ {[%clk 0:01:29]} 39. Kf3 {[%clk 0:00:01]}  c4 {[%clk 0:01:26]} 0-1


[Site "https://www.chess.com"]

[Event "Titled Tuesday Blitz February 14 Early 2023"]
[White "Shimelkov, Vasiliy"]
[Black "Zemlyanskii, Ivan"]
[WhiteFideId "13701630"]
[BlackFideId "24249971"]
[WhiteElo "2159"]
[BlackElo "2300"]
[Result "0-1"]
[Round "05"]
[TimeControl "180+2"]
[Date "2023.02.15"]
[WhiteClock "0:00:05"]
[BlackClock "0:00:10"]

1. d4 {[%clk 0:03:00]}  Nc6 {[%clk 0:02:59]} 2. Nf3 {[%clk 0:02:58]}  d6 {[%clk 0:02:56]} 3. c4 {[%clk 0:02:56]}  e5 {[%clk 0:02:54]} 4. d5 {[%clk 0:02:55]}  Nce7 {[%clk 0:02:54]} 5. e4 {[%clk 0:02:55]}  Ng6 {[%clk 0:02:53]} 6. Nc3 {[%clk 0:02:55]}  Be7 {[%clk 0:02:42]} 7. Be2 {[%clk 0:02:52]}  Bg4 {[%clk 0:02:42]} 8. Be3 {[%clk 0:02:50]}  Bxf3 {[%clk 0:02:40]} 9. Bxf3 {[%clk 0:02:50]}  Bg5 {[%clk 0:02:34]} 10. Qd2 {[%clk 0:02:49]}  Bxe3 {[%clk 0:02:31]} 11. Qxe3 {[%clk 0:02:47]}  Nf6 {[%clk 0:02:31]} 12. h3 {[%clk 0:02:46]}  O-O {[%clk 0:02:30]} 13. Ne2 {[%clk 0:02:41]}  Nd7 {[%clk 0:02:24]} 14. g4 {[%clk 0:02:40]}  Qh4 {[%clk 0:02:14]} 15. Ng3 {[%clk 0:02:37]}  Nf4 {[%clk 0:02:04]} 16. Nf5 {[%clk 0:02:35]}  Qd8 {[%clk 0:01:49]} 17. O-O-O {[%clk 0:01:55]}  g6 {[%clk 0:01:42]} 18. Ng3 {[%clk 0:01:53]}  Qh4 {[%clk 0:01:42]} 19. Rdg1 {[%clk 0:01:48]}  Nc5 {[%clk 0:01:30]} 20. Kb1 {[%clk 0:01:39]}  a5 {[%clk 0:01:26]} 21. Ne2 {[%clk 0:01:32]}  Ncd3 {[%clk 0:01:22]} 22. Rg3 {[%clk 0:01:26]}  Nxe2 {[%clk 0:01:17]} 23. Bxe2 {[%clk 0:01:23]}  Nf4 {[%clk 0:01:17]} 24. Bd1 {[%clk 0:01:23]}  Qe7 {[%clk 0:01:04]} 25. h4 {[%clk 0:01:20]}  c6 {[%clk 0:01:05]} 26. h5 {[%clk 0:01:16]}  Kg7 {[%clk 0:01:02]} 27. g5 {[%clk 0:01:13]}  cxd5 {[%clk 0:00:55]} 28. cxd5 {[%clk 0:01:10]}  Rac8 {[%clk 0:00:54]} 29. Qf3 {[%clk 0:00:58]}  Qc7 {[%clk 0:00:49]} 30. Qe3 {[%clk 0:00:55]}  Qc4 {[%clk 0:00:43]} 31. b3 {[%clk 0:00:42]}  Qb4 {[%clk 0:00:41]} 32. h6+ {[%clk 0:00:37]}  Kg8 {[%clk 0:00:41]} 33. Qe1 {[%clk 0:00:33]}  Qa3 {[%clk 0:00:35]} 34. Bg4 {[%clk 0:00:31]}  Rc5 {[%clk 0:00:31]} 35. Rc3 {[%clk 0:00:27]}  f5 {[%clk 0:00:16]} 36. gxf6 {[%clk 0:00:26]}  Rxf6 {[%clk 0:00:14]} 37. Rxc5 {[%clk 0:00:20]}  Qxc5 {[%clk 0:00:15]} 38. Qe3 {[%clk 0:00:19]}  Qxe3 {[%clk 0:00:13]} 39. fxe3 {[%clk 0:00:19]}  Nd3 {[%clk 0:00:14]} 40. Be6+ {[%clk 0:00:19]}  Kf8 {[%clk 0:00:14]} 41. Rd1 {[%clk 0:00:18]}  Nc5 {[%clk 0:00:15]} 42. Rc1 {[%clk 0:00:17]}  b5 {[%clk 0:00:10]} 43. Bg4 {[%clk 0:00:12]}  g5 {[%clk 0:00:10]} 44. a3 {[%clk 0:00:11]}  Rxh6 {[%clk 0:00:10]} 45. b4 {[%clk 0:00:11]}  axb4 {[%clk 0:00:11]} 46. axb4 {[%clk 0:00:12]}  Nxe4 {[%clk 0:00:11]} 47. Rc8+ {[%clk 0:00:10]}  Kg7 {[%clk 0:00:10]} 48. Bf5 {[%clk 0:00:09]}  Rh1+ {[%clk 0:00:09]} 49. Kb2 {[%clk 0:00:09]}  Rh2+ {[%clk 0:00:10]} 50. Kc1 {[%clk 0:00:07]}  Nd2 {[%clk 0:00:08]} 51. Rc7+ {[%clk 0:00:07]}  Kf6 {[%clk 0:00:08]} 52. Bxh7 {[%clk 0:00:06]}  Nc4 {[%clk 0:00:09]} 53. Bd3 {[%clk 0:00:06]}  Nxe3 {[%clk 0:00:09]} 54. Bxb5 {[%clk 0:00:05]}  Nxd5 {[%clk 0:00:09]} 55. Rb7 {[%clk 0:00:04]}  Nxb4 {[%clk 0:00:10]} 56. Bc4 {[%clk 0:00:05]}  Rc2+ {[%clk 0:00:09]} 57. Kd1 {[%clk 0:00:05]}  Rxc4 {[%clk 0:00:10]} 0-1


[Site "https://www.chess.com"]

[Event "Titled Tuesday Blitz February 14 Early 2023"]
[White "Ibadov, Dashgyn"]
[Black "Barp, Alberto"]
[WhiteFideId "24107514"]
[BlackFideId "872555"]
[WhiteElo "2391"]
[BlackElo "2432"]
[Result "0-1"]
[Round "05"]
[TimeControl "180+2"]
[Date "2023.02.15"]
[WhiteClock "0:00:44"]
[BlackClock "0:01:30"]

1. e4 {[%clk 0:03:00]}  c5 {[%clk 0:02:59]} 2. Nc3 {[%clk 0:03:00]}  a6 {[%clk 0:02:59]} 3. d4 {[%clk 0:02:58]}  cxd4 {[%clk 0:02:58]} 4. Qxd4 {[%clk 0:02:58]}  Nc6 {[%clk 0:02:58]} 5. Qd2 {[%clk 0:02:59]}  e6 {[%clk 0:02:58]} 6. b3 {[%clk 0:02:58]}  Nf6 {[%clk 0:02:57]} 7. Bb2 {[%clk 0:02:57]}  d5 {[%clk 0:02:56]} 8. O-O-O {[%clk 0:02:52]}  d4 {[%clk 0:02:52]} 9. Nce2 {[%clk 0:02:39]}  Nxe4 {[%clk 0:02:48]} 10. Qf4 {[%clk 0:02:39]}  Qg5 {[%clk 0:02:35]} 11. Qxg5 {[%clk 0:02:39]}  Nxg5 {[%clk 0:02:36]} 12. Nxd4 {[%clk 0:02:37]}  Bd7 {[%clk 0:02:36]} 13. Ngf3 {[%clk 0:02:24]}  Ne4 {[%clk 0:02:34]} 14. Re1 {[%clk 0:02:12]}  Nxf2 {[%clk 0:02:32]} 15. Rg1 {[%clk 0:02:12]}  Ng4 {[%clk 0:02:25]} 16. h3 {[%clk 0:02:04]}  Nf6 {[%clk 0:02:18]} 17. g4 {[%clk 0:01:55]}  Bc5 {[%clk 0:02:16]} 18. g5 {[%clk 0:01:50]}  Nh5 {[%clk 0:02:09]} 19. Rg4 {[%clk 0:01:45]}  O-O {[%clk 0:01:53]} 20. Nxc6 {[%clk 0:01:31]}  Bxc6 {[%clk 0:01:54]} 21. Ne5 {[%clk 0:01:31]}  Rac8 {[%clk 0:01:54]} 22. Rh4 {[%clk 0:01:26]}  Ng3 {[%clk 0:01:51]} 23. Bd3 {[%clk 0:01:26]}  Nf5 {[%clk 0:01:47]} 24. Rf4 {[%clk 0:01:20]}  Be3+ {[%clk 0:01:42]} 25. Rxe3 {[%clk 0:01:20]}  Nxe3 {[%clk 0:01:43]} 26. h4 {[%clk 0:01:07]}  Bb5 {[%clk 0:01:35]} 27. Be4 {[%clk 0:01:03]}  Rfd8 {[%clk 0:01:34]} 28. Nd3 {[%clk 0:00:47]}  Rxc2+ {[%clk 0:01:31]} 29. Kb1 {[%clk 0:00:44]}  Bxd3 {[%clk 0:01:30]} 0-1


[Site "https://www.chess.com"]

[Event "Titled Tuesday Blitz February 14 Early 2023"]
[White "Srihari L R"]
[Black "Ordekalog"]
[WhiteFideId "46617116"]
[WhiteElo "2416"]
[BlackElo "2544"]
[Result "1-0"]
[Round "05"]
[TimeControl "180+2"]
[Date "2023.02.15"]
[WhiteClock "0:00:59"]
[BlackClock "0:00:02"]

1. c4 {[%clk 0:03:00]}  e6 {[%clk 0:02:59]} 2. Nc3 {[%clk 0:02:58]}  d5 {[%clk 0:02:58]} 3. d4 {[%clk 0:02:54]}  c5 {[%clk 0:02:58]} 4. cxd5 {[%clk 0:02:50]}  exd5 {[%clk 0:02:58]} 5. Nf3 {[%clk 0:02:48]}  Nc6 {[%clk 0:02:58]} 6. dxc5 {[%clk 0:02:46]}  d4 {[%clk 0:02:56]} 7. Na4 {[%clk 0:02:45]}  Bxc5 {[%clk 0:02:56]} 8. Nxc5 {[%clk 0:02:45]}  Qa5+ {[%clk 0:02:55]} 9. Qd2 {[%clk 0:02:42]}  Qxc5 {[%clk 0:02:55]} 10. e3 {[%clk 0:02:42]}  dxe3 {[%clk 0:02:52]} 11. Qxe3+ {[%clk 0:02:43]}  Qxe3+ {[%clk 0:02:51]} 12. Bxe3 {[%clk 0:02:44]}  Nf6 {[%clk 0:02:48]} 13. Bc5 {[%clk 0:02:44]}  Ne4 {[%clk 0:02:47]} 14. Ba3 {[%clk 0:02:43]}  Be6 {[%clk 0:02:42]} 15. Bd3 {[%clk 0:02:39]}  Bd5 {[%clk 0:02:39]} 16. O-O {[%clk 0:02:37]}  O-O-O {[%clk 0:02:38]} 17. Rac1 {[%clk 0:02:36]}  Rhe8 {[%clk 0:02:36]} 18. Rfd1 {[%clk 0:02:23]}  f6 {[%clk 0:02:30]} 19. b3 {[%clk 0:02:22]}  Kb8 {[%clk 0:02:26]} 20. Bf1 {[%clk 0:02:22]}  g5 {[%clk 0:02:10]} 21. Nd4 {[%clk 0:02:18]}  Nxd4 {[%clk 0:02:03]} 22. Rxd4 {[%clk 0:02:19]}  Bc6 {[%clk 0:02:03]} 23. Rxd8+ {[%clk 0:02:14]}  Rxd8 {[%clk 0:02:04]} 24. f3 {[%clk 0:02:14]}  Nd6 {[%clk 0:01:46]} 25. Bb2 {[%clk 0:02:07]}  Ne8 {[%clk 0:01:36]} 26. Bc3 {[%clk 0:02:06]}  h5 {[%clk 0:01:32]} 27. Re1 {[%clk 0:02:06]}  h4 {[%clk 0:01:30]} 28. Re6 {[%clk 0:02:05]}  Rd1 {[%clk 0:01:21]} 29. Kf2 {[%clk 0:02:04]}  Kc8 {[%clk 0:01:11]} 30. Re1 {[%clk 0:01:53]}  Rxe1 {[%clk 0:01:07]} 31. Bxe1 {[%clk 0:01:50]}  Kd7 {[%clk 0:01:08]} 32. Bc3 {[%clk 0:01:49]}  Ke6 {[%clk 0:01:07]} 33. g3 {[%clk 0:01:48]}  hxg3+ {[%clk 0:01:06]} 34. hxg3 {[%clk 0:01:49]}  f5 {[%clk 0:01:02]} 35. Bd2 {[%clk 0:01:46]}  g4 {[%clk 0:00:59]} 36. fxg4 {[%clk 0:01:47]}  fxg4 {[%clk 0:00:58]} 37. Ke3 {[%clk 0:01:46]}  Nf6 {[%clk 0:00:49]} 38. Kf4 {[%clk 0:01:45]}  Bf3 {[%clk 0:00:48]} 39. Bd3 {[%clk 0:01:40]}  Nd5+ {[%clk 0:00:46]} 40. Kg5 {[%clk 0:01:39]}  Ke5 {[%clk 0:00:45]} 41. Bf5 {[%clk 0:01:38]}  Kd4 {[%clk 0:00:37]} 42. Bxg4 {[%clk 0:01:37]}  Bxg4 {[%clk 0:00:36]} 43. Kxg4 {[%clk 0:01:37]}  Kd3 {[%clk 0:00:35]} 44. Be1 {[%clk 0:01:19]}  Kc2 {[%clk 0:00:23]} 45. Kf5 {[%clk 0:01:19]}  Kb2 {[%clk 0:00:22]} 46. Ke5 {[%clk 0:01:16]}  Ne3 {[%clk 0:00:20]} 47. Ke4 {[%clk 0:01:11]}  Ng4 {[%clk 0:00:18]} 48. Kf4 {[%clk 0:01:11]}  Nf6 {[%clk 0:00:16]} 49. Kf5 {[%clk 0:01:10]}  Nd5 {[%clk 0:00:15]} 50. Ke6 {[%clk 0:01:03]}  Ne3 {[%clk 0:00:14]} 51. Bf2 {[%clk 0:01:03]}  Nf1 {[%clk 0:00:04]} 52. g4 {[%clk 0:01:02]}  Nh2 {[%clk 0:00:03]} 53. g5 {[%clk 0:01:00]}  Nf3 {[%clk 0:00:04]} 54. g6 {[%clk 0:01:01]}  Ng5+ {[%clk 0:00:02]} 55. Kf5 {[%clk 0:00:59]} 1-0


[Site "https://www.chess.com"]

[Event "Titled Tuesday Blitz February 14 Early 2023"]
[White "Kumala, Aleksander"]
[Black "Zahid, Sanatan"]
[WhiteFideId "1141880"]
[BlackFideId "10201963"]
[WhiteElo "2165"]
[BlackElo "1930"]
[Result "0-1"]
[Round "05"]
[TimeControl "180+2"]
[Date "2023.02.15"]
[WhiteClock "0:00:43"]
[BlackClock "0:02:30"]

1. d4 {[%clk 0:03:00]}  Nf6 {[%clk 0:02:59]} 2. Bg5 {[%clk 0:03:01]}  b6 {[%clk 0:02:57]} 3. Nd2 {[%clk 0:02:53]}  Bb7 {[%clk 0:02:57]} 4. Ngf3 {[%clk 0:02:54]}  e6 {[%clk 0:02:57]} 5. e4 {[%clk 0:02:54]}  h6 {[%clk 0:02:58]} 6. Bxf6 {[%clk 0:02:53]}  Qxf6 {[%clk 0:02:59]} 7. a4 {[%clk 0:02:51]}  a6 {[%clk 0:02:58]} 8. a5 {[%clk 0:02:48]}  b5 {[%clk 0:02:58]} 9. c4 {[%clk 0:02:48]}  bxc4 {[%clk 0:02:58]} 10. Bxc4 {[%clk 0:02:48]}  g6 {[%clk 0:02:59]} 11. Qb3 {[%clk 0:02:43]}  Bc8 {[%clk 0:02:56]} 12. e5 {[%clk 0:02:39]}  Qe7 {[%clk 0:02:55]} 13. Ne4 {[%clk 0:02:38]}  Bg7 {[%clk 0:02:54]} 14. g4 {[%clk 0:02:31]}  Nc6 {[%clk 0:02:53]} 15. h4 {[%clk 0:02:14]}  Rb8 {[%clk 0:02:51]} 16. Qc3 {[%clk 0:02:12]}  Bb7 {[%clk 0:02:47]} 17. Nc5 {[%clk 0:02:07]}  Nxd4 {[%clk 0:02:43]} 18. Nxb7 {[%clk 0:02:03]}  Nxf3+ {[%clk 0:02:43]} 19. Qxf3 {[%clk 0:02:03]}  Qb4+ {[%clk 0:02:43]} 20. Qc3 {[%clk 0:01:58]}  Qxc3+ {[%clk 0:02:36]} 21. bxc3 {[%clk 0:01:58]}  Rxb7 {[%clk 0:02:36]} 22. Bxa6 {[%clk 0:01:58]}  Ra7 {[%clk 0:02:37]} 23. Bd3 {[%clk 0:01:55]}  Bxe5 {[%clk 0:02:38]} 24. Kd2 {[%clk 0:01:55]}  Ke7 {[%clk 0:02:37]} 25. a6 {[%clk 0:01:50]}  Rha8 {[%clk 0:02:34]} 26. h5 {[%clk 0:01:44]}  g5 {[%clk 0:02:34]} 27. f3 {[%clk 0:01:41]}  c5 {[%clk 0:02:33]} 28. Rhb1 {[%clk 0:01:38]}  d5 {[%clk 0:02:33]} 29. Bb5 {[%clk 0:01:35]}  Kd6 {[%clk 0:02:32]} 30. Ra2 {[%clk 0:01:30]}  c4 {[%clk 0:02:32]} 31. Rba1 {[%clk 0:01:23]}  f5 {[%clk 0:02:31]} 32. gxf5 {[%clk 0:01:22]}  exf5 {[%clk 0:02:32]} 33. Rd1 {[%clk 0:01:21]}  g4 {[%clk 0:02:30]} 34. fxg4 {[%clk 0:01:19]}  fxg4 {[%clk 0:02:31]} 35. Ke3 {[%clk 0:01:19]}  Kc5 {[%clk 0:02:31]} 36. Ra5 {[%clk 0:01:08]}  Bxc3 {[%clk 0:02:31]} 37. Ra3 {[%clk 0:00:59]}  Bb4 {[%clk 0:02:30]} 38. Ra2 {[%clk 0:00:57]}  Kxb5 {[%clk 0:02:30]} 39. Rxd5+ {[%clk 0:00:58]}  Bc5+ {[%clk 0:02:30]} 40. Kf4 {[%clk 0:00:51]}  c3 {[%clk 0:02:30]} 41. Kxg4 {[%clk 0:00:48]}  Rxa6 {[%clk 0:02:30]} 42. Rc2 {[%clk 0:00:48]}  Kc4 {[%clk 0:02:30]} 43. Rxc5+ {[%clk 0:00:48]}  Kxc5 {[%clk 0:02:30]} 44. Rxc3+ {[%clk 0:00:48]}  Kd4 {[%clk 0:02:30]} 45. Rf3 {[%clk 0:00:46]}  Rg8+ {[%clk 0:02:30]} 46. Kh4 {[%clk 0:00:46]}  Ra1 {[%clk 0:02:30]} 47. Rh3 {[%clk 0:00:42]}  Ke4 {[%clk 0:02:30]} 48. Rg3 {[%clk 0:00:43]}  Rh1+ {[%clk 0:02:29]} 49. Rh3 {[%clk 0:00:43]}  Rxh3+ {[%clk 0:02:29]} 50. Kxh3 {[%clk 0:00:43]}  Kf3 {[%clk 0:02:30]} 0-1


[Site "https://www.chess.com"]